[Event "Late-Titled-Tuesday-Blitz-February-06-2024"]
[Site "Chess.com"]
[Date "2024.02.06"]
[Round "11"]
[White "GAusal"]
[Black "Bkmzzzzz"]
[Result "0-1"]
[WhiteElo "2279"]
[BlackElo "2409"]
[TimeControl "180+1"]
[EndTime "16:04:40 PST"]
[Termination "Bkmzzzzz won on time"]

1. d4 {[%clk 0:02:23.3]} 1... d5 {[%clk 0:02:59.4]} 2. Nf3 {[%clk 0:02:22.7]}
2... e6 {[%clk 0:02:58.4]} 3. Bf4 {[%clk 0:02:22.3]} 3... Bd6 {[%clk 0:02:57.6]}
4. Bxd6 {[%clk 0:02:21.4]} 4... Qxd6 {[%clk 0:02:57.5]} 5. e3 {[%clk 0:02:21.9]}
5... Nf6 {[%clk 0:02:57.7]} 6. c4 {[%clk 0:02:21.4]} 6... dxc4 {[%clk
0:02:49.9]} 7. Bxc4 {[%clk 0:02:19.6]} 7... Qb4+ {[%clk 0:02:43.4]} 8. Nbd2
{[%clk 0:02:17.2]} 8... O-O {[%clk 0:02:34.2]} 9. Qb3 {[%clk 0:02:09.9]} 9...
Qd6 {[%clk 0:02:29.3]} 10. O-O {[%clk 0:02:07.2]} 10... a6 {[%clk 0:02:29.4]}
11. Bd3 {[%clk 0:02:06.1]} 11... b6 {[%clk 0:02:28]} 12. Rac1 {[%clk 0:02:05.2]}
12... Bb7 {[%clk 0:02:27.9]} 13. Qc2 {[%clk 0:02:03.1]} 13... Rc8 {[%clk
0:02:25.4]} 14. Qd1 {[%clk 0:01:58.6]} 14... c5 {[%clk 0:02:22.5]} 15. Qe2
{[%clk 0:01:56]} 15... Nbd7 {[%clk 0:02:18.2]} 16. dxc5 {[%clk 0:01:53.6]} 16...
Nxc5 {[%clk 0:02:17.6]} 17. Bb1 {[%clk 0:01:52.6]} 17... a5 {[%clk 0:02:11.6]}
18. Nd4 {[%clk 0:01:52.4]} 18... Ba6 {[%clk 0:02:00.4]} 19. Nc4 {[%clk
0:01:46.9]} 19... Qe7 {[%clk 0:01:33.9]} 20. Qd2 {[%clk 0:01:35]} 20... Ncd7
{[%clk 0:01:11.9]} 21. b3 {[%clk 0:01:29.4]} 21... Bxc4 {[%clk 0:01:10.1]} 22.
Rxc4 {[%clk 0:01:24.4]} 22... Rxc4 {[%clk 0:01:10.7]} 23. bxc4 {[%clk
0:01:24.6]} 23... Rc8 {[%clk 0:01:11]} 24. Rc1 {[%clk 0:01:23.5]} 24... Ne5
{[%clk 0:01:09.9]} 25. Bd3 {[%clk 0:01:14.5]} 25... Qa3 {[%clk 0:01:07.8]} 26.
Bf1 {[%clk 0:01:11.9]} 26... h6 {[%clk 0:01:02.2]} 27. Nb5 {[%clk 0:01:06.6]}
27... Qa4 {[%clk 0:00:50.6]} 28. Qc2 {[%clk 0:00:36.9]} 28... Qb4 {[%clk
0:00:44.3]} 29. a3 {[%clk 0:00:31.2]} 29... Qc5 {[%clk 0:00:44.6]} 30. Qb3
{[%clk 0:00:19.3]} 30... Nfd7 {[%clk 0:00:40]} 31. Be2 {[%clk 0:00:16.1]} 31...
Qc6 {[%clk 0:00:37.4]} 32. f3 {[%clk 0:00:14.8]} 32... Nc5 {[%clk 0:00:37.1]}
33. Qc3 {[%clk 0:00:13.5]} 33... Ncd7 {[%clk 0:00:34.7]} 34. Kf2 {[%clk
0:00:12.6]} 34... Qc5 {[%clk 0:00:34.3]} 35. Nd4 {[%clk 0:00:11.7]} 35... Nf6
{[%clk 0:00:31.3]} 36. Nb5 {[%clk 0:00:08.4]} 36... Neg4+ {[%clk 0:00:29.5]} 37.
fxg4 {[%clk 0:00:05.4]} 37... Ne4+ {[%clk 0:00:29]} 38. Kf3 {[%clk 0:00:01.7]}
38... Nxc3 {[%clk 0:00:29.9]} 0-1

[Event "Late-Titled-Tuesday-Blitz-February-06-2024"]
[Site "Chess.com"]
[Date "2024.02.06"]
[Round "11"]
[White "jefferyx"]
[Black "kuli4ik"]
[Result "1-0"]
[WhiteElo "3007"]
[BlackElo "2871"]
[TimeControl "180+1"]
[EndTime "16:04:41 PST"]
[Termination "jefferyx won by resignation"]

1. e4 {[%clk 0:03:00.9]} 1... g6 {[%clk 0:02:59.3]} 2. d4 {[%clk 0:03:00.9]}
2... Bg7 {[%clk 0:02:59.7]} 3. Nf3 {[%clk 0:03:01]} 3... d6 {[%clk 0:02:59.2]}
4. Be3 {[%clk 0:03:01.5]} 4... c5 {[%clk 0:02:58.3]} 5. c3 {[%clk 0:02:56.7]}
5... cxd4 {[%clk 0:02:57.9]} 6. cxd4 {[%clk 0:02:57.6]} 6... Nc6 {[%clk
0:02:57.3]} 7. h3 {[%clk 0:02:50.4]} 7... Nf6 {[%clk 0:02:49.3]} 8. Nc3 {[%clk
0:02:50.5]} 8... O-O {[%clk 0:02:48.7]} 9. Bd3 {[%clk 0:02:50.3]} 9... b6 {[%clk
0:02:30.9]} 10. O-O {[%clk 0:02:49.9]} 10... Bb7 {[%clk 0:02:31.1]} 11. a3
{[%clk 0:02:50.2]} 11... Rc8 {[%clk 0:02:30.9]} 12. Re1 {[%clk 0:02:50.3]} 12...
e6 {[%clk 0:02:23.3]} 13. Rc1 {[%clk 0:02:49]} 13... Na5 {[%clk 0:02:17.4]} 14.
Nd2 {[%clk 0:02:48.8]} 14... Qd7 {[%clk 0:02:01.8]} 15. b4 {[%clk 0:02:48]}
15... Nc6 {[%clk 0:02:02]} 16. Qa4 {[%clk 0:02:46]} 16... Rfd8 {[%clk
0:01:48.8]} 17. Bb5 {[%clk 0:02:43.1]} 17... Qe7 {[%clk 0:00:47.6]} 18. Nf3
{[%clk 0:02:43.1]} 18... a6 {[%clk 0:00:41.9]} 19. Bd3 {[%clk 0:02:42.1]} 19...
b5 {[%clk 0:00:41.8]} 20. Qb3 {[%clk 0:02:42.2]} 20... Nb8 {[%clk 0:00:39.8]}
21. d5 {[%clk 0:02:35.1]} 21... e5 {[%clk 0:00:38.5]} 22. a4 {[%clk 0:02:33.8]}
22... bxa4 {[%clk 0:00:35]} 23. Nxa4 {[%clk 0:02:34.7]} 23... Rxc1 {[%clk
0:00:32.9]} 24. Rxc1 {[%clk 0:02:34.9]} 24... Rc8 {[%clk 0:00:33.3]} 25. Rxc8+
{[%clk 0:02:32.9]} 25... Bxc8 {[%clk 0:00:33.5]} 26. Nb6 {[%clk 0:02:33.8]}
26... Bb7 {[%clk 0:00:33.7]} 27. Nd2 {[%clk 0:02:31.1]} 27... Qc7 {[%clk
0:00:32.8]} 28. Ndc4 {[%clk 0:02:30.8]} 28... Nfd7 {[%clk 0:00:30.7]} 29. Nxd7
{[%clk 0:02:30.2]} 29... Nxd7 {[%clk 0:00:30]} 30. Na5 {[%clk 0:02:30.8]} 30...
Bc8 {[%clk 0:00:28.2]} 31. Nc6 {[%clk 0:02:31.1]} 31... Nb8 {[%clk 0:00:26.6]}
32. Qc4 {[%clk 0:02:21.6]} 32... Nxc6 {[%clk 0:00:26.6]} 33. Qxc6 {[%clk
0:02:22.5]} 33... Qxc6 {[%clk 0:00:26.8]} 34. dxc6 {[%clk 0:02:23.4]} 34... Kf8
{[%clk 0:00:22.4]} 35. Bc4 {[%clk 0:02:22.3]} 35... Ke7 {[%clk 0:00:21.2]} 36.
g4 {[%clk 0:02:20.8]} 36... f5 {[%clk 0:00:17.2]} 37. gxf5 {[%clk 0:02:19.5]}
37... gxf5 {[%clk 0:00:17.3]} 38. exf5 {[%clk 0:02:19.9]} 38... Kf6 {[%clk
0:00:16.5]} 39. Be2 {[%clk 0:01:29.1]} 39... d5 {[%clk 0:00:13.4]} 40. Bb6
{[%clk 0:01:29.7]} 40... Bf8 {[%clk 0:00:10.8]} 41. Bd8+ {[%clk 0:01:29.8]}
41... Kf7 {[%clk 0:00:11]} 42. Bh5+ {[%clk 0:01:29.5]} 42... Kg8 {[%clk
0:00:11.1]} 43. Be8 {[%clk 0:01:29.8]} 43... Bxb4 {[%clk 0:00:10]} 44. Bd7
{[%clk 0:01:28.7]} 44... Bxd7 {[%clk 0:00:10.4]} 45. cxd7 {[%clk 0:01:29.6]}
45... Kf7 {[%clk 0:00:10.2]} 46. Bc7 {[%clk 0:01:23.5]} 46... Be7 {[%clk
0:00:10.2]} 47. d8=Q {[%clk 0:01:24.4]} 47... Bxd8 {[%clk 0:00:10.4]} 48. Bxd8
{[%clk 0:01:25.3]} 48... a5 {[%clk 0:00:09.8]} 49. Bxa5 {[%clk 0:01:10.4]} 49...
Kf6 {[%clk 0:00:10.1]} 50. Kg2 {[%clk 0:01:09]} 50... Kxf5 {[%clk 0:00:10.3]}
51. Kf3 {[%clk 0:01:09.6]} 51... d4 {[%clk 0:00:10.6]} 52. Bc7 {[%clk
0:01:03.7]} 52... e4+ {[%clk 0:00:10.5]} 53. Kg3 {[%clk 0:01:04.3]} 53... h5
{[%clk 0:00:05.8]} 54. h4 {[%clk 0:01:04.6]} 54... e3 {[%clk 0:00:04.6]} 55.
fxe3 {[%clk 0:01:04.6]} 55... dxe3 {[%clk 0:00:05.5]} 56. Kf3 {[%clk 0:01:05]}
56... e2 {[%clk 0:00:05.4]} 57. Kxe2 {[%clk 0:01:05.4]} 57... Kg4 {[%clk
0:00:05.9]} 58. Bd8 {[%clk 0:01:06.1]} 1-0

[Event "Late-Titled-Tuesday-Blitz-February-06-2024"]
[Site "Chess.com"]
[Date "2024.02.06"]
[Round "11"]
[White "cthake"]
[Black "ChessFanNM"]
[Result "0-1"]
[WhiteElo "1848"]
[BlackElo "2330"]
[TimeControl "180+1"]
[EndTime "16:04:41 PST"]
[Termination "ChessFanNM won on time"]

1. e4 {[%clk 0:03:00.9]} 1... c6 {[%clk 0:02:59.3]} 2. Nc3 {[%clk 0:02:59.1]}
2... d5 {[%clk 0:02:58.5]} 3. exd5 {[%clk 0:02:57.3]} 3... cxd5 {[%clk
0:02:57.3]} 4. d4 {[%clk 0:02:57.2]} 4... Nc6 {[%clk 0:02:56.4]} 5. Bf4 {[%clk
0:02:56.3]} 5... Bf5 {[%clk 0:02:45.4]} 6. Nf3 {[%clk 0:02:56]} 6... Nf6 {[%clk
0:02:44.6]} 7. Bb5 {[%clk 0:02:54.8]} 7... a6 {[%clk 0:02:35.7]} 8. Bxc6+ {[%clk
0:02:52.3]} 8... bxc6 {[%clk 0:02:35.9]} 9. O-O {[%clk 0:02:51.9]} 9... e6
{[%clk 0:02:35.6]} 10. Ne5 {[%clk 0:02:51.7]} 10... Rc8 {[%clk 0:02:23.8]} 11.
Qe2 {[%clk 0:02:45]} 11... Qa5 {[%clk 0:02:08.8]} 12. Rfe1 {[%clk 0:02:36.3]}
12... Be7 {[%clk 0:02:03.9]} 13. a3 {[%clk 0:02:21.7]} 13... O-O {[%clk
0:01:58]} 14. b4 {[%clk 0:02:21.3]} 14... Qd8 {[%clk 0:01:52.7]} 15. Qxa6 {[%clk
0:02:15.8]} 15... Bd6 {[%clk 0:01:23.4]} 16. Bg3 {[%clk 0:02:07.5]} 16... Bxe5
{[%clk 0:01:19.3]} 17. Bxe5 {[%clk 0:02:05]} 17... Bxc2 {[%clk 0:01:16]} 18.
Rac1 {[%clk 0:01:58.3]} 18... Bb3 {[%clk 0:01:07.1]} 19. h3 {[%clk 0:01:37.1]}
19... Bc4 {[%clk 0:01:03.8]} 20. Qb7 {[%clk 0:01:29.5]} 20... Nd7 {[%clk
0:00:56.1]} 21. Re3 {[%clk 0:01:14.3]} 21... Nxe5 {[%clk 0:00:53.4]} 22. Rxe5
{[%clk 0:01:12.9]} 22... Qd6 {[%clk 0:00:37.1]} 23. Qb6 {[%clk 0:01:07.7]} 23...
Ra8 {[%clk 0:00:22.9]} 24. Ra1 {[%clk 0:00:53.6]} 24... Rfb8 {[%clk 0:00:22.2]}
25. Qc5 {[%clk 0:00:29.6]} 25... Qxc5 {[%clk 0:00:21.9]} 26. bxc5 {[%clk
0:00:24.7]} 26... Rb3 {[%clk 0:00:21.8]} 27. Re3 {[%clk 0:00:20]} 27... Raxa3
{[%clk 0:00:21.2]} 28. Rxa3 {[%clk 0:00:18.7]} 28... Rxa3 {[%clk 0:00:21.5]} 29.
Nd1 {[%clk 0:00:18.1]} 29... Ra1 {[%clk 0:00:20.4]} 30. Re1 {[%clk 0:00:13.8]}
30... Bb3 {[%clk 0:00:20.5]} 31. Kf1 {[%clk 0:00:01.6]} 31... Rxd1 {[%clk
0:00:19.9]} 32. Rxd1 {[%clk 0:00:01.3]} 32... Bxd1 {[%clk 0:00:20]} 33. Ke1
{[%clk 0:00:02.2]} 33... Ba4 {[%clk 0:00:20.3]} 34. Kd2 {[%clk 0:00:01.4]} 34...
Bb5 {[%clk 0:00:21.2]} 0-1

[Event "Late-Titled-Tuesday-Blitz-February-06-2024"]
[Site "Chess.com"]
[Date "2024.02.06"]
[Round "11"]
[White "TanitoluwaAps116"]
[Black "bazar-wokzal"]
[Result "0-1"]
[WhiteElo "2799"]
[BlackElo "2649"]
[TimeControl "180+1"]
[EndTime "16:04:45 PST"]
[Termination "bazar-wokzal won by checkmate"]

1. e4 {[%clk 0:03:00.9]} 1... Nc6 {[%clk 0:02:58.9]} 2. Nc3 {[%clk 0:02:56.1]}
2... Nf6 {[%clk 0:02:58.6]} 3. d4 {[%clk 0:02:51.9]} 3... d5 {[%clk 0:02:58.5]}
4. e5 {[%clk 0:02:52.1]} 4... Nd7 {[%clk 0:02:57.5]} 5. Nf3 {[%clk 0:02:47.2]}
5... Nb6 {[%clk 0:02:56.1]} 6. Bd3 {[%clk 0:02:44.7]} 6... Bg4 {[%clk
0:02:54.6]} 7. Be3 {[%clk 0:02:43.9]} 7... e6 {[%clk 0:02:47.4]} 8. h3 {[%clk
0:02:42.9]} 8... Bxf3 {[%clk 0:02:46.5]} 9. Qxf3 {[%clk 0:02:42.8]} 9... Bb4
{[%clk 0:02:46.8]} 10. Qg4 {[%clk 0:02:37.9]} 10... Kf8 {[%clk 0:02:36.8]} 11.
O-O {[%clk 0:02:36.4]} 11... Bxc3 {[%clk 0:02:32.2]} 12. bxc3 {[%clk 0:02:36.4]}
12... Na5 {[%clk 0:02:31.6]} 13. f4 {[%clk 0:02:36.4]} 13... h5 {[%clk
0:02:31.5]} 14. Qg3 {[%clk 0:02:30.4]} 14... g6 {[%clk 0:02:31.5]} 15. Rf3
{[%clk 0:02:16.8]} 15... Nac4 {[%clk 0:02:30.7]} 16. Raf1 {[%clk 0:02:01.4]}
16... h4 {[%clk 0:02:25.1]} 17. Qg4 {[%clk 0:01:55.4]} 17... Rh5 {[%clk
0:02:19.8]} 18. Bc1 {[%clk 0:01:22.7]} 18... Qe7 {[%clk 0:02:00.6]} 19. f5
{[%clk 0:00:59]} 19... exf5 {[%clk 0:01:58.1]} 20. Bxf5 {[%clk 0:00:58.6]} 20...
Rxf5 {[%clk 0:01:55.5]} 21. Bh6+ {[%clk 0:00:57.1]} 21... Ke8 {[%clk 0:01:54.2]}
22. Rxf5 {[%clk 0:00:57.2]} 22... gxf5 {[%clk 0:01:53.7]} 23. Qg8+ {[%clk
0:00:58.1]} 23... Kd7 {[%clk 0:01:53.7]} 24. Qh7 {[%clk 0:00:53]} 24... Re8
{[%clk 0:01:19.6]} 25. Rxf5 {[%clk 0:00:48]} 25... Kc8 {[%clk 0:01:18.7]} 26.
Rxf7 {[%clk 0:00:38.6]} 26... Qd8 {[%clk 0:01:05.8]} 27. a4 {[%clk 0:00:31.9]}
27... a5 {[%clk 0:01:05]} 28. Qf5+ {[%clk 0:00:24.4]} 28... Kb8 {[%clk
0:01:03.5]} 29. Bg5 {[%clk 0:00:20.6]} 29... Qc8 {[%clk 0:01:03.1]} 30. Qh7
{[%clk 0:00:20.1]} 30... Nxa4 {[%clk 0:01:00.8]} 31. Be7 {[%clk 0:00:14]} 31...
Nxc3 {[%clk 0:00:57.7]} 32. Bc5 {[%clk 0:00:09.5]} 32... b6 {[%clk 0:00:53]} 33.
Be7 {[%clk 0:00:08.6]} 33... Ne2+ {[%clk 0:00:52.6]} 34. Kh2 {[%clk 0:00:08.7]}
34... Nxd4 {[%clk 0:00:53.4]} 35. Qxh4 {[%clk 0:00:05]} 35... Nc6 {[%clk
0:00:49.7]} 36. Bf6 {[%clk 0:00:03.4]} 36... N4xe5 {[%clk 0:00:48.3]} 37. Rg7
{[%clk 0:00:03.3]} 37... Qf5 {[%clk 0:00:42.9]} 38. Bg5 {[%clk 0:00:02.4]} 38...
Qxc2 {[%clk 0:00:39.5]} 39. Qg3 {[%clk 0:00:02.5]} 39... Nd4 {[%clk 0:00:36.6]}
40. Bf4 {[%clk 0:00:01.9]} 40... Nef3+ {[%clk 0:00:33.5]} 41. Kh1 {[%clk
0:00:02.1]} 41... Qd1+ {[%clk 0:00:32.2]} 42. Qe1 {[%clk 0:00:02.6]} 42... Rxe1#
{[%clk 0:00:30.6]} 0-1

[Event "Late-Titled-Tuesday-Blitz-February-06-2024"]
[Site "Chess.com"]
[Date "2024.02.06"]
[Round "11"]
[White "VitaliyChayka"]
[Black "aghasiyevkamal"]
[Result "0-1"]
[WhiteElo "2447"]
[BlackElo "2601"]
[TimeControl "180+1"]
[EndTime "16:04:45 PST"]
[Termination "aghasiyevkamal won by resignation"]

1. d4 {[%clk 0:03:00.9]} 1... Nf6 {[%clk 0:02:58]} 2. Bf4 {[%clk 0:03:01.6]}
2... d5 {[%clk 0:02:55.8]} 3. e3 {[%clk 0:03:02.3]} 3... e6 {[%clk 0:02:55.7]}
4. Nf3 {[%clk 0:03:02.6]} 4... Bd6 {[%clk 0:02:56.1]} 5. Bg3 {[%clk 0:03:03.2]}
5... O-O {[%clk 0:02:53.7]} 6. Nbd2 {[%clk 0:03:03.8]} 6... b6 {[%clk
0:02:53.7]} 7. c3 {[%clk 0:03:03.7]} 7... Ba6 {[%clk 0:02:50.8]} 8. Bxa6 {[%clk
0:03:03.7]} 8... Nxa6 {[%clk 0:02:50.4]} 9. Qe2 {[%clk 0:03:04.6]} 9... Qc8
{[%clk 0:02:45.8]} 10. e4 {[%clk 0:03:05.2]} 10... Be7 {[%clk 0:02:34.9]} 11.
O-O {[%clk 0:02:53.9]} 11... c5 {[%clk 0:02:32.2]} 12. Rac1 {[%clk 0:02:42.5]}
12... Qb7 {[%clk 0:02:29]} 13. exd5 {[%clk 0:02:35.8]} 13... Nxd5 {[%clk
0:02:26.9]} 14. Ne4 {[%clk 0:02:35.8]} 14... Rac8 {[%clk 0:02:21]} 15. Rfd1
{[%clk 0:02:28.3]} 15... cxd4 {[%clk 0:02:19.9]} 16. Nxd4 {[%clk 0:02:27.9]}
16... Nc5 {[%clk 0:02:18.5]} 17. Nd6 {[%clk 0:02:04.4]} 17... Bxd6 {[%clk
0:02:14.5]} 18. Bxd6 {[%clk 0:02:05.3]} 18... Rfd8 {[%clk 0:02:13.5]} 19. Bg3
{[%clk 0:02:04.6]} 19... a6 {[%clk 0:01:59.8]} 20. Rd2 {[%clk 0:02:04.1]} 20...
b5 {[%clk 0:01:56.7]} 21. Rcd1 {[%clk 0:02:04.6]} 21... Na4 {[%clk 0:01:48.9]}
22. Bh4 {[%clk 0:02:00.2]} 22... Re8 {[%clk 0:01:47.7]} 23. Rd3 {[%clk
0:01:56.6]} 23... Nf4 {[%clk 0:01:44.7]} 24. Qg4 {[%clk 0:01:51.1]} 24... Ng6
{[%clk 0:01:22.1]} 25. Bg3 {[%clk 0:01:49.1]} 25... Nxb2 {[%clk 0:01:21.6]} 26.
h4 {[%clk 0:01:40.8]} 26... Nxd1 {[%clk 0:01:14.3]} 27. Rxd1 {[%clk 0:01:37.7]}
27... f5 {[%clk 0:00:55.3]} 28. Qg5 {[%clk 0:01:20.7]} 28... Qe7 {[%clk
0:00:52.3]} 29. Qd2 {[%clk 0:01:21.3]} 29... Nxh4 {[%clk 0:00:42.2]} 30. Re1
{[%clk 0:01:14]} 30... Qf6 {[%clk 0:00:41.1]} 31. Be5 {[%clk 0:01:11.4]} 31...
Qg6 {[%clk 0:00:39.2]} 32. g3 {[%clk 0:01:11.7]} 32... f4 {[%clk 0:00:35.7]} 33.
Qxf4 {[%clk 0:01:09.5]} 33... Nf5 {[%clk 0:00:34.9]} 34. Nf3 {[%clk 0:01:06.3]}
34... h6 {[%clk 0:00:31.3]} 35. Rd1 {[%clk 0:01:04.7]} 35... Rcd8 {[%clk
0:00:30.8]} 36. Re1 {[%clk 0:01:01.1]} 36... Rd5 {[%clk 0:00:26.9]} 37. Kg2
{[%clk 0:01:00.8]} 37... Rc8 {[%clk 0:00:25.4]} 38. Re4 {[%clk 0:00:55.3]} 38...
a5 {[%clk 0:00:20.4]} 39. Re1 {[%clk 0:00:54.6]} 39... Rc4 {[%clk 0:00:19.6]}
40. Re4 {[%clk 0:00:49.5]} 40... Rxe4 {[%clk 0:00:17.9]} 41. Qxe4 {[%clk
0:00:50.4]} 41... Rd3 {[%clk 0:00:17.4]} 42. Bf4 {[%clk 0:00:25.7]} 42... Nh4+
{[%clk 0:00:15.6]} 0-1

[Event "Late-Titled-Tuesday-Blitz-February-06-2024"]
[Site "Chess.com"]
[Date "2024.02.06"]
[Round "11"]
[White "UnTucopalaTimba"]
[Black "rcmz"]
[Result "0-1"]
[WhiteElo "1955"]
[BlackElo "2128"]
[TimeControl "180+1"]
[EndTime "16:04:46 PST"]
[Termination "rcmz won by checkmate"]

1. e4 {[%clk 0:03:00.4]} 1... a6 {[%clk 0:02:59]} 2. d4 {[%clk 0:02:58.4]} 2...
b5 {[%clk 0:02:58.9]} 3. a4 {[%clk 0:02:55.9]} 3... b4 {[%clk 0:02:58.4]} 4. a5
{[%clk 0:02:55.7]} 4... Bb7 {[%clk 0:02:58.3]} 5. Bd3 {[%clk 0:02:54.4]} 5... e6
{[%clk 0:02:58.5]} 6. Nf3 {[%clk 0:02:52.4]} 6... c5 {[%clk 0:02:58.6]} 7. Be3
{[%clk 0:02:46.6]} 7... Qc7 {[%clk 0:02:57.7]} 8. O-O {[%clk 0:02:40.2]} 8... c4
{[%clk 0:02:56.9]} 9. Be2 {[%clk 0:02:33.4]} 9... Bxe4 {[%clk 0:02:56.6]} 10.
Nbd2 {[%clk 0:02:31.1]} 10... Bd5 {[%clk 0:02:54.6]} 11. b3 {[%clk 0:02:16.5]}
11... c3 {[%clk 0:02:51.8]} 12. Nc4 {[%clk 0:02:16.3]} 12... Bxc4 {[%clk
0:02:51.2]} 13. Bxc4 {[%clk 0:02:14.4]} 13... d5 {[%clk 0:02:51]} 14. Bd3 {[%clk
0:02:12.1]} 14... Nf6 {[%clk 0:02:48.7]} 15. Qe2 {[%clk 0:02:09.5]} 15... Bd6
{[%clk 0:02:47.5]} 16. h3 {[%clk 0:02:06.5]} 16... h6 {[%clk 0:02:38.4]} 17. Ra4
{[%clk 0:01:47.8]} 17... Nfd7 {[%clk 0:02:25.6]} 18. Bc1 {[%clk 0:01:38.3]}
18... Qb7 {[%clk 0:02:10.1]} 19. Ne5 {[%clk 0:01:32.8]} 19... Nxe5 {[%clk
0:02:06.7]} 20. dxe5 {[%clk 0:01:32.7]} 20... Be7 {[%clk 0:02:06.6]} 21. Qg4
{[%clk 0:01:30.5]} 21... g6 {[%clk 0:01:52.6]} 22. Be3 {[%clk 0:01:16.8]} 22...
h5 {[%clk 0:01:51.3]} 23. Qf3 {[%clk 0:01:05]} 23... Nc6 {[%clk 0:01:46.2]} 24.
Bf4 {[%clk 0:00:56.7]} 24... Nd4 {[%clk 0:01:32.6]} 25. Qe3 {[%clk 0:00:48.2]}
25... Nf5 {[%clk 0:01:27]} 26. Bxf5 {[%clk 0:00:47.5]} 26... gxf5 {[%clk
0:01:26.2]} 27. Bg5 {[%clk 0:00:46]} 27... Rg8 {[%clk 0:01:14.8]} 28. Bxe7
{[%clk 0:00:36]} 28... Kxe7 {[%clk 0:01:14.6]} 29. Qd4 {[%clk 0:00:31]} 29...
Rab8 {[%clk 0:01:11.8]} 30. Rd1 {[%clk 0:00:21.1]} 30... Qb5 {[%clk 0:01:09.5]}
31. Qh4+ {[%clk 0:00:19.2]} 31... Ke8 {[%clk 0:01:07.8]} 32. Qxh5 {[%clk
0:00:16.9]} 32... Rg6 {[%clk 0:01:02.4]} 33. Qh8+ {[%clk 0:00:16.2]} 33... Ke7
{[%clk 0:01:01.3]} 34. Qh4+ {[%clk 0:00:15.8]} 34... Kd7 {[%clk 0:00:59.6]} 35.
Qh5 {[%clk 0:00:13.9]} 35... Rbg8 {[%clk 0:00:57.5]} 36. g3 {[%clk 0:00:12.9]}
36... f4 {[%clk 0:00:55]} 37. g4 {[%clk 0:00:11.4]} 37... Qc5 {[%clk 0:00:49.8]}
38. Qh4 {[%clk 0:00:08.2]} 38... Qb5 {[%clk 0:00:41]} 39. Qh5 {[%clk 0:00:04.5]}
39... Qe2 {[%clk 0:00:40.5]} 40. Raa1 {[%clk 0:00:03]} 40... Rxg4+ {[%clk
0:00:37]} 41. hxg4 {[%clk 0:00:02.7]} 41... Rxg4+ {[%clk 0:00:36.9]} 42. Kh2
{[%clk 0:00:02.8]} 42... Qxf2+ {[%clk 0:00:35]} 43. Kh3 {[%clk 0:00:02]} 43...
Qg2# {[%clk 0:00:35]} 0-1

[Event "Late-Titled-Tuesday-Blitz-February-06-2024"]
[Site "Chess.com"]
[Date "2024.02.06"]
[Round "11"]
[White "GlavkonVVS"]
[Black "ACollins05"]
[Result "1/2-1/2"]
[WhiteElo "2614"]
[BlackElo "2465"]
[TimeControl "180+1"]
[EndTime "16:04:47 PST"]
[Termination "Game drawn by repetition"]

1. c4 {[%clk 0:03:00.9]} 1... e6 {[%clk 0:02:59.3]} 2. Nf3 {[%clk 0:02:59.7]}
2... d5 {[%clk 0:02:58.8]} 3. g3 {[%clk 0:03:00]} 3... Nf6 {[%clk 0:02:58.2]} 4.
Bg2 {[%clk 0:03:00.2]} 4... dxc4 {[%clk 0:02:57.9]} 5. Qa4+ {[%clk 0:02:59.9]}
5... Nbd7 {[%clk 0:02:57.2]} 6. Qxc4 {[%clk 0:03:00]} 6... c5 {[%clk 0:02:57.4]}
7. O-O {[%clk 0:02:58.6]} 7... b6 {[%clk 0:02:57.7]} 8. d3 {[%clk 0:02:52.7]}
8... Bb7 {[%clk 0:02:56.4]} 9. Nc3 {[%clk 0:02:48.9]} 9... Be7 {[%clk
0:02:52.3]} 10. a4 {[%clk 0:02:47.5]} 10... a6 {[%clk 0:02:50.7]} 11. Qb3 {[%clk
0:02:46.5]} 11... O-O {[%clk 0:02:49.5]} 12. Rd1 {[%clk 0:02:45]} 12... Rc8
{[%clk 0:02:48.7]} 13. h3 {[%clk 0:02:39.2]} 13... Nd5 {[%clk 0:02:46.2]} 14. d4
{[%clk 0:02:28.2]} 14... c4 {[%clk 0:02:36.1]} 15. Qc2 {[%clk 0:02:27.4]} 15...
Nb4 {[%clk 0:02:27.4]} 16. Qb1 {[%clk 0:02:21.1]} 16... Nf6 {[%clk 0:02:23.4]}
17. Ne5 {[%clk 0:02:17.3]} 17... Bxg2 {[%clk 0:02:21.1]} 18. Kxg2 {[%clk
0:02:17.4]} 18... b5 {[%clk 0:02:21.2]} 19. axb5 {[%clk 0:02:17]} 19... axb5
{[%clk 0:02:21.4]} 20. e4 {[%clk 0:02:02]} 20... Qb6 {[%clk 0:02:16.9]} 21. Be3
{[%clk 0:01:55.2]} 21... Qb7 {[%clk 0:02:11.8]} 22. f3 {[%clk 0:01:50]} 22...
Rfd8 {[%clk 0:02:08.4]} 23. Ra5 {[%clk 0:01:38.2]} 23... Nc6 {[%clk 0:02:06.8]}
24. Rxb5 {[%clk 0:01:36.7]} 24... Qa6 {[%clk 0:01:57.2]} 25. Nxc6 {[%clk
0:01:30.8]} 25... Qxc6 {[%clk 0:01:53.2]} 26. Qc2 {[%clk 0:01:23.3]} 26... Rb8
{[%clk 0:01:52.3]} 27. d5 {[%clk 0:01:12.2]} 27... exd5 {[%clk 0:01:50.7]} 28.
exd5 {[%clk 0:01:11.5]} 28... Qd7 {[%clk 0:01:49.5]} 29. Rxb8 {[%clk 0:01:08.1]}
29... Rxb8 {[%clk 0:01:50.4]} 30. d6 {[%clk 0:01:08.3]} 30... Bf8 {[%clk
0:01:48.7]} 31. g4 {[%clk 0:01:01]} 31... h6 {[%clk 0:01:44.3]} 32. Bf4 {[%clk
0:01:01]} 32... Qb7 {[%clk 0:01:35.7]} 33. Rd2 {[%clk 0:00:56.5]} 33... Qc6
{[%clk 0:01:30.3]} 34. Ne4 {[%clk 0:00:52.3]} 34... Nd5 {[%clk 0:01:22.7]} 35.
Bxh6 {[%clk 0:00:35.6]} 35... Bxd6 {[%clk 0:01:10]} 36. Nxd6 {[%clk 0:00:25.9]}
36... Qxd6 {[%clk 0:01:10.9]} 37. Qxc4 {[%clk 0:00:21.5]} 37... Qxh6 {[%clk
0:01:07.1]} 38. Qxd5 {[%clk 0:00:20.5]} 38... Qf6 {[%clk 0:01:01.6]} 39. b3
{[%clk 0:00:13.5]} 39... Qc3 {[%clk 0:00:58]} 40. Rd3 {[%clk 0:00:12.6]} 40...
Qc2+ {[%clk 0:00:58.6]} 41. Kg3 {[%clk 0:00:13.1]} 41... Qc7+ {[%clk 0:00:56.6]}
42. Qd6 {[%clk 0:00:12.1]} 42... Qxd6+ {[%clk 0:00:56.3]} 43. Rxd6 {[%clk
0:00:12.7]} 43... Rxb3 {[%clk 0:00:56.7]} 44. h4 {[%clk 0:00:13.2]} 44... g6
{[%clk 0:00:56.1]} 45. g5 {[%clk 0:00:12.4]} 45... Kg7 {[%clk 0:00:56.2]} 46.
Rd7 {[%clk 0:00:12.8]} 46... Rb4 {[%clk 0:00:54.4]} 47. Rd6 {[%clk 0:00:12.5]}
47... Rb3 {[%clk 0:00:54.4]} 48. Rd7 {[%clk 0:00:12.8]} 48... Ra3 {[%clk
0:00:54.4]} 49. Kg4 {[%clk 0:00:12.8]} 49... Ra1 {[%clk 0:00:50.1]} 50. f4
{[%clk 0:00:12.5]} 50... Rg1+ {[%clk 0:00:49.8]} 51. Kf3 {[%clk 0:00:12.8]}
51... Rh1 {[%clk 0:00:48.8]} 52. Kg3 {[%clk 0:00:13.1]} 52... Rg1+ {[%clk
0:00:49]} 53. Kh3 {[%clk 0:00:13]} 53... Rf1 {[%clk 0:00:49.3]} 54. Kg3 {[%clk
0:00:12.8]} 54... Rg1+ {[%clk 0:00:49.5]} 55. Kf2 {[%clk 0:00:12.5]} 55... Rh1
{[%clk 0:00:49.7]} 56. Kg3 {[%clk 0:00:12.4]} 56... Rg1+ {[%clk 0:00:49.8]}
1/2-1/2